fUSD/lending_fUSD_20250530
["ID","MTS","AMOUNT","RATE_DAILY","PERIOD"]
[363199444,1748621446098,-420.0,0.00022191,2]
[363199445,1748621446108,-556.67,0.00022191,2]
[363199446,1748621446117,-420.0,0.00022191,2]
[363199447,1748621446127,-420.0,0.00022191,2]
[363199448,1748621446137,-420.0,0.00022191,2]
[363199449,1748621446146,-420.0,0.00022191,2]
[363199450,1748621446156,-420.0,0.00022191,2]
[363199451,1748621446165,-420.0,0.00022191,2]
[363199452,1748621446175,-420.0,0.00022191,2]
[363199453,1748621446185,-420.0,0.00022191,2]
[363199454,1748621446195,-420.0,0.00022191,2]
[363199455,1748621446205,-420.0,0.00022191,2]
[363199456,1748621446214,-518.65,0.00022191,2]
[363199457,1748621446224,-420.0,0.00022191,2]
[363199458,1748621446234,-527.91,0.00022191,2]
[363199459,1748621446243,-994.08,0.00022191,2]
[363199460,1748621446253,-832.68,0.00022191,2]
[363199461,1748621446263,-420.0,0.00022191,2]
[363199462,1748621446273,-420.0,0.00022191,2]
[363199463,1748621446283,-420.0,0.00022191,2]
[363199464,1748621446292,-420.0,0.00022191,2]
[363199465,1748621446302,-420.0,0.00022191,2]
[363199466,1748621446311,-420.0,0.00022191,2]
[363199467,1748621446321,-420.0,0.00022191,2]
[363199468,1748621446331,-502.62,0.00022191,2]
[363199469,1748621446341,-420.0,0.00022191,2]
[363199470,1748621446351,-420.0,0.00022191,2]
[363199471,1748621446361,-769.55,0.00022191,2]
[363199472,1748621446371,-420.0,0.00022191,2]
[363199473,1748621446381,-565.59,0.00022191,2]
[363199474,1748621446391,-420.0,0.00022191,2]
[363199475,1748621446401,-420.0,0.00022191,2]
[363199476,1748621446411,-420.0,0.00022191,2]
[363199477,1748621446421,-420.0,0.00022191,2]
[363199478,1748621446431,-420.0,0.00022191,2]
[363199479,1748621446441,-250.0,0.00022191,2]
[363199480,1748621446451,-454.46,0.00022191,2]
[363199481,1748621446460,-420.0,0.00022191,2]
[363199482,1748621446470,-420.0,0.00022191,2]
[363199483,1748621446479,-420.0,0.00022191,2]
[363199484,1748621446489,-420.0,0.00022191,2]
[363199485,1748621446499,-420.0,0.00022191,2]
[363199486,1748621446508,-420.0,0.00022191,2]
[363199487,1748621446519,-420.0,0.00022191,2]
[363199488,1748621446528,-591.9,0.00022191,2]
[363199489,1748621446538,-420.0,0.00022191,2]
[363199490,1748621446548,-420.0,0.00022191,2]
[363199491,1748621446557,-420.0,0.00022191,2]
[363199492,1748621446567,-482.59,0.00022191,2]
[363199493,1748621446576,-1552.41,0.00022191,2]
[363199494,1748621446586,-420.0,0.00022191,2]
[363199495,1748621446597,-420.0,0.00022191,2]
[363199496,1748621446608,-420.0,0.00022191,2]
[363199497,1748621446618,-420.0,0.00022191,2]
[363199498,1748621446629,-663.63,0.00022191,2]
[363199499,1748621446639,-420.0,0.00022191,2]
[363199500,1748621446649,-420.0,0.00022191,2]
[363199501,1748621446658,-420.0,0.00022191,2]
[363199502,1748621446669,-456.47,0.00022191,2]
[363199503,1748621446679,-420.0,0.00022191,2]
[363199504,1748621446688,-420.0,0.00022191,2]
[363199505,1748621446698,-563.71,0.00022191,2]
[363199506,1748621446707,-420.0,0.00022191,2]
[363199507,1748621446719,-420.0,0.00022191,2]
[363199508,1748621446728,-565.86,0.00022191,2]
[363199509,1748621446738,-499.67,0.00022191,2]
[363199510,1748621446750,-420.0,0.00022191,2]
[363199511,1748621446759,-420.0,0.00022191,2]
[363199512,1748621446770,-420.0,0.00022191,2]
[363199513,1748621446780,-420.0,0.00022191,2]
[363199514,1748621446789,-420.0,0.00022191,2]
[363199515,1748621446798,-477.92,0.00022191,2]
[363199516,1748621446809,-420.0,0.00022191,2]
[363199517,1748621446819,-472.21,0.00022191,2]
[363199518,1748621446828,-420.0,0.00022191,2]
[363199519,1748621446838,-712.95,0.00022191,2]
[363199520,1748621446847,-1641.75,0.00022191,2]
[363199521,1748621446856,-420.0,0.00022191,2]
[363199522,1748621446866,-420.0,0.00022191,2]
[363199523,1748621446875,-420.0,0.00022191,2]
[363199524,1748621446884,-420.0,0.00022191,2]
[363199525,1748621446895,-420.0,0.00022191,2]
[363199526,1748621446904,-420.0,0.00022191,2]
[363199527,1748621446916,-420.0,0.00022191,2]
[363199528,1748621446925,-420.0,0.00022191,2]
[363199529,1748621446935,-420.0,0.00022191,2]
[363199530,1748621446945,-714.4,0.00022191,2]
[363199531,1748621446955,-424.32,0.00022191,2]
[363199532,1748621446966,-420.0,0.00022191,2]
[363199533,1748621446975,-420.0,0.00022191,2]
[363199534,1748621446987,-533.52,0.00022191,2]
[363199535,1748621446997,-420.0,0.00022191,2]
[363199536,1748621447007,-420.0,0.00022191,2]
[363199537,1748621447016,-420.0,0.00022191,2]
[363199538,1748621447026,-420.0,0.00022191,2]
[363199539,1748621447036,-420.0,0.00022191,2]
[363199540,1748621447046,-420.0,0.00022191,2]
[363199541,1748621447055,-420.0,0.00022191,2]
[363199542,1748621447064,-420.0,0.00022191,2]
[363199543,1748621447075,-558.89,0.00022191,2]
[363199544,1748621447085,-754.53,0.00022191,2]
[363199545,1748621447096,-420.0,0.00022191,2]
[363199546,1748621447106,-420.0,0.00022191,2]
[363199547,1748621447399,-420.0,0.00022191,2]
[363199548,1748621447409,-420.0,0.00022191,2]
[363199549,1748621447419,-420.0,0.00022191,2]
[363199550,1748621447428,-420.0,0.00022191,2]
[363199551,1748621447438,-420.0,0.00022191,2]
[363199552,1748621447448,-420.0,0.00022191,2]
[363199553,1748621447457,-420.0,0.00022191,2]
[363199554,1748621447467,-411.96160554,0.00022191,2]
[363199555,1748621447477,-420.0,0.00022191,2]
[363199556,1748621447486,-420.0,0.00022191,2]
[363199557,1748621447496,-1074.85,0.00022191,2]
[363199558,1748621447505,-420.0,0.00022191,2]
[363199559,1748621447515,-300.2767849,0.00022191,2]
[363199560,1748621447525,-420.0,0.00022191,2]
[363199561,1748621447537,-420.0,0.00022191,2]
[363199562,1748621447547,-420.0,0.00022191,2]
[363199563,1748621447556,-420.0,0.00022191,2]
[363199564,1748621447566,-420.0,0.00022191,2]
[363199565,1748621447575,-522.22,0.00022191,2]
[363199566,1748621447585,-420.0,0.00022191,2]
[363199567,1748621447595,-420.0,0.00022191,2]
[363199568,1748621447605,-420.0,0.00022191,2]
[363199569,1748621447615,-420.0,0.00022191,2]
[363199570,1748621447624,-420.0,0.00022191,2]
[363199571,1748621447634,-420.0,0.00022191,2]
[363199572,1748621447644,-420.0,0.00022191,2]
[363199573,1748621447654,-420.0,0.00022191,2]
[363199574,1748621447664,-420.0,0.00022191,2]
[363199575,1748621447678,-420.0,0.00022191,2]
[363199576,1748621447687,-420.0,0.00022191,2]
[363199577,1748621447697,-420.0,0.00022191,2]
[363199578,1748621447707,-420.0,0.00022191,2]
[363199579,1748621447717,-420.0,0.00022191,2]
[363199580,1748621447727,-420.0,0.00022191,2]
[363199581,1748621447736,-420.0,0.00022191,2]
[363199582,1748621447747,-1366.25,0.00022191,2]
[363199583,1748621447757,-420.0,0.00022191,2]
[363199584,1748621447767,-420.0,0.00022191,2]
[363199585,1748621447776,-420.0,0.00022191,2]
[363199586,1748621447788,-528.28,0.00022191,2]
[363199587,1748621447797,-420.0,0.00022191,2]
[363199588,1748621447807,-420.0,0.00022191,2]
[363199589,1748621447817,-420.0,0.00022191,2]
[363199590,1748621447827,-420.0,0.00022191,2]
[363199591,1748621447838,-420.0,0.00022191,2]
[363199592,1748621447847,-420.0,0.00022191,2]
[363199593,1748621447857,-456.12,0.00022191,2]
[363199594,1748621447867,-420.0,0.00022191,2]
[363199595,1748621447876,-420.0,0.00022191,2]
[363199596,1748621447886,-420.0,0.00022191,2]
[363199597,1748621447896,-420.0,0.00022191,2]
[363199598,1748621447906,-420.0,0.00022191,2]
[363199599,1748621447916,-420.0,0.00022191,2]
[363199600,1748621447926,-420.0,0.00022191,2]
[363199601,1748621447935,-420.0,0.00022191,2]
[363199602,1748621447945,-420.0,0.00022191,2]
[363199603,1748621447954,-420.0,0.00022191,2]
[363199604,1748621447964,-420.0,0.00022191,2]
[363199605,1748621447975,-420.0,0.00022191,2]
[363199606,1748621447985,-420.0,0.00022191,2]
[363199607,1748621447997,-420.0,0.00022191,2]
[363199608,1748621448007,-420.0,0.00022191,2]
[363199609,1748621448017,-420.0,0.00022191,2]
[363199610,1748621448027,-451.25,0.00022191,2]
[363199611,1748621448038,-420.0,0.00022191,2]
[363199612,1748621448048,-155.02,0.00022191,2]
[363199613,1748621448058,-669.88,0.00022191,2]
[363199614,1748621448068,-420.0,0.00022191,2]
[363199615,1748621448078,-561.26,0.00022191,2]
[363199616,1748621448089,-420.0,0.00022191,2]
[363199617,1748621448099,-633.2,0.00022191,2]
[363199618,1748621448110,-420.0,0.00022191,2]
[363199619,1748621448120,-420.0,0.00022191,2]
[363199620,1748621448130,-420.0,0.00022191,2]
[363199621,1748621448141,-420.0,0.00022191,2]
[363199622,1748621448151,-420.0,0.00022191,2]
[363199623,1748621448162,-420.0,0.00022191,2]
[363199624,1748621448172,-420.0,0.00022191,2]
[363199625,1748621448183,-420.0,0.00022191,2]
[363199626,1748621448193,-420.0,0.00022191,2]
[363199627,1748621448205,-420.0,0.00022191,2]
[363199628,1748621448215,-491.81,0.00022191,2]
[363199629,1748621448225,-420.0,0.00022191,2]
[363199630,1748621448235,-420.0,0.00022191,2]
[363199631,1748621448245,-420.0,0.00022191,2]
[363199632,1748621448255,-984.97,0.00022191,2]
[363199633,1748621448264,-420.0,0.00022191,2]
[363199634,1748621448275,-420.0,0.00022191,2]
[363199635,1748621448286,-420.0,0.00022191,2]
[363199636,1748621448296,-561.86,0.00022191,2]
[363199637,1748621448306,-420.0,0.00022191,2]
[363199638,1748621448316,-646.16,0.00022191,2]
[363199639,1748621448326,-609.7,0.00022191,2]
[363199640,1748621448335,-1453.08,0.00022191,2]
[363199641,1748621448345,-1000.74,0.00022191,2]
[363199642,1748621448355,-420.0,0.00022191,2]
[363199643,1748621448365,-420.0,0.00022191,2]
[363199644,1748621448375,-420.0,0.00022191,2]
[363199645,1748621448385,-420.0,0.00022191,2]
[363199646,1748621448395,-420.0,0.00022191,2]
[363199647,1748621448407,-420.0,0.00022191,2]
[363199648,1748621448417,-420.0,0.00022191,2]
[363199649,1748621448428,-420.0,0.00022191,2]
[363199650,1748621448438,-653.92,0.00022191,2]
[363199651,1748621448448,-584.98,0.00022191,2]
[363199652,1748621448458,-602.51,0.00022191,2]
[363199653,1748621448468,-420.0,0.00022191,2]
[363199654,1748621448478,-420.0,0.00022191,2]
[363199655,1748621448488,-420.0,0.00022191,2]
[363199656,1748621448498,-420.0,0.00022191,2]
[363199657,1748621448508,-474.55,0.00022191,2]
[363199658,1748621448518,-611.17,0.00022191,2]
[363199659,1748621448527,-715.72,0.00022191,2]
[363199660,1748621448537,-46503.35,0.00022191,2]
[363199661,1748621448547,-601.37,0.00022191,2]
[363199662,1748621448765,-420.0,0.00022191,2]
[363199663,1748621448775,-420.0,0.00022191,2]
[363199664,1748621448785,-547.8,0.00022191,2]
[363199665,1748621448795,-420.0,0.00022191,2]
[363199666,1748621448805,-420.0,0.00022191,2]
[363199667,1748621448815,-420.0,0.00022191,2]
[363199668,1748621448824,-1585.24,0.00022191,2]
[363199669,1748621448834,-420.0,0.00022191,2]
[363199670,1748621448843,-420.0,0.00022191,2]
[363199671,1748621448853,-420.0,0.00022191,2]
[363199672,1748621448862,-420.0,0.00022191,2]
[363199673,1748621448872,-420.0,0.00022191,2]
[363199674,1748621448882,-477.09,0.00022191,2]
[363199675,1748621448892,-824.32,0.00022191,2]
[363199676,1748621448902,-420.0,0.00022191,2]
[363199677,1748621448912,-448.1,0.00022191,2]
[363199678,1748621448922,-420.0,0.00022191,2]
[363199679,1748621448932,-535.78,0.00022191,2]
[363199680,1748621448942,-674.1,0.00022191,2]
[363199681,1748621448951,-660.41,0.00022191,2]
[363199682,1748621448961,-521.11,0.00022191,2]
[363199683,1748621448972,-420.0,0.00022191,2]
[363199684,1748621448981,-586.5,0.00022191,2]
[363199685,1748621448991,-486.66,0.00022191,2]
[363199686,1748621449001,-420.0,0.00022191,2]
[363199687,1748621449011,-660.07,0.00022191,2]
[363199688,1748621449020,-435.08,0.00022191,2]
[363199689,1748621449030,-607.52,0.00022191,2]
[363199690,1748621449040,-6048.52,0.00022191,2]
[363199691,1748621449050,-656.82,0.00022191,2]
[363199692,1748621449059,-988.3,0.00022191,2]
[363199693,1748621449069,-420.0,0.00022191,2]
[363199694,1748621449079,-420.0,0.00022191,2]
[363199695,1748621449088,-420.0,0.00022191,2]
[363199696,1748621449098,-757.13,0.00022191,2]
[363199697,1748621449108,-4088.4,0.00022191,2]
[363199698,1748621449117,-420.0,0.00022191,2]
[363199699,1748621449127,-1445.55,0.00022191,2]
[363199700,1748621449136,-420.0,0.00022191,2]
[363199701,1748621449146,-957.56,0.00022191,2]
[363199702,1748621449156,-1373.18,0.00022191,2]
[363199703,1748621449165,-3058.68,0.00022191,2]
[363199704,1748621449175,-2153.43,0.00022191,2]
[363199705,1748621449184,-420.0,0.00022191,2]
[363199706,1748621449194,-420.0,0.00022191,2]
[363199707,1748621449204,-1240.58,0.00022191,2]
[363199708,1748621449214,-420.0,0.00022191,2]
[363199709,1748621449223,-420.0,0.00022191,2]
[363199710,1748621449232,-457.49,0.00022191,2]
[363199711,1748621449242,-420.0,0.00022191,2]
[363199712,1748621449251,-420.0,0.00022191,2]
[363199713,1748621449261,-420.0,0.00022191,2]
[363199714,1748621449271,-1202.6,0.00022191,2]
[363199715,1748621449281,-1697.84,0.00022191,2]
[363199716,1748621449292,-420.0,0.00022191,2]
[363199717,1748621449302,-420.0,0.00022191,2]
[363199718,1748621449312,-420.0,0.00022191,2]
[363199719,1748621449322,-4664.26,0.00022191,2]
[363199720,1748621449331,-1453.56,0.00022191,2]
[363199721,1748621449341,-420.0,0.00022191,2]
[363199722,1748621449350,-661.23,0.00022191,2]
[363199723,1748621449360,-557.77,0.00022191,2]
[363199724,1748621449370,-539.38,0.00022191,2]
[363199725,1748621449379,-573.95,0.00022191,2]
[363199726,1748621449389,-892.62,0.00022191,2]
[363199727,1748621449399,-421.77,0.00022191,2]
[363199728,1748621449409,-420.0,0.00022191,2]
[363199729,1748621449418,-420.0,0.00022191,2]
[363199730,1748621449428,-420.0,0.00022191,2]
[363199731,1748621449437,-474.82,0.00022191,2]
[363199732,1748621449447,-559.5,0.00022191,2]
[363199733,1748621449456,-420.0,0.00022191,2]
[363199734,1748621449466,-420.0,0.00022191,2]
[363199735,1748621449475,-1026.82,0.00022191,2]
[363199736,1748621449484,-904.65,0.00022191,2]
[363199737,1748621449494,-420.0,0.00022191,2]
[363199738,1748621449503,-478.53,0.00022191,2]
[363199739,1748621449513,-1487.96,0.00022191,2]
[363199740,1748621449522,-420.0,0.00022191,2]
[363199741,1748621449531,-1781.02,0.00022191,2]
[363199742,1748621449541,-465.53,0.00022191,2]
[363199743,1748621449551,-712.19,0.00022191,2]
[363199744,1748621449560,-2725.8,0.00022191,2]
[363199745,1748621449570,-8689.25,0.00022191,2]
[363199746,1748621449580,-420.0,0.00022191,2]
[363199747,1748621449589,-445.2,0.00022191,2]
[363199748,1748621449599,-420.0,0.00022191,2]
[363199749,1748621449609,-420.0,0.00022191,2]
[363199750,1748621449618,-3605.9,0.00022191,2]
[363199751,1748621449628,-455.83,0.00022191,2]
[363199752,1748621449638,-420.0,0.00022191,2]
[363199753,1748621449647,-257.94187463,0.00022191,2]
[363199754,1748621449658,-420.0,0.00022191,2]
[363199755,1748621449669,-420.96,0.00022191,2]
[363199756,1748621449679,-456.81,0.00022191,2]
[363199757,1748621449688,-420.0,0.00022191,2]
[363199758,1748621449698,-420.0,0.00022191,2]
[363199759,1748621449707,-689.0,0.00022191,2]
[363199760,1748621449718,-4965.11,0.00022191,2]
[363199761,1748621449728,-814.32,0.00022191,2]
[363199762,1748621449737,-420.0,0.00022191,2]
[363199763,1748621449748,-684.53,0.00022191,2]
[363199764,1748621449758,-2825.92,0.00022191,2]
[363199765,1748621449768,-420.0,0.00022191,2]
[363199766,1748621449778,-420.0,0.00022191,2]
[363199767,1748621449789,-1113.68,0.00022191,2]
[363199768,1748621449799,-420.0,0.00022191,2]
[363199769,1748621449809,-490.12,0.00022191,2]
[363199770,1748621449819,-420.0,0.00022191,2]
[363199771,1748621449828,-420.0,0.00022191,2]
[363199772,1748621449838,-985.67,0.00022191,2]
[363199773,1748621449848,-420.0,0.00022191,2]
[363199774,1748621449858,-421.96,0.00022191,2]
[363199775,1748621449868,-420.0,0.00022191,2]
[363199776,1748621449878,-420.0,0.00022191,2]
[363199777,1748621449888,-420.0,0.00022191,2]
[363199778,1748621449899,-420.0,0.00022191,2]
[363199779,1748621449909,-790.94,0.00022191,2]
[363199780,1748621449918,-420.0,0.00022191,2]
[363199781,1748621449928,-420.0,0.00022191,2]
[363199782,1748621449939,-654.29,0.00022191,2]
[363199783,1748621449948,-1212.39,0.00022191,2]
[363199784,1748621449957,-420.0,0.00022191,2]
[363199785,1748621449966,-669.88,0.00022191,2]
[363199786,1748621449975,-679.73,0.00022191,2]
[363199787,1748621450060,-420.0,0.00022191,2]
[363199788,1748621450071,-1005.75,0.00022191,2]
[363199789,1748621450081,-420.0,0.00022191,2]
[363199790,1748621450090,-421.04,0.00022191,2]
[363199791,1748621450100,-472.22,0.00022191,2]
[363199792,1748621450110,-1292.13,0.00022191,2]
[363199793,1748621450119,-284.35430573,0.00022191,2]
[363199794,1748621450129,-453.1,0.00022191,2]
[363199795,1748621450140,-1024.15,0.00022191,2]
[363199796,1748621450149,-598.05,0.00022191,2]
[363199797,1748621450159,-507.86,0.00022191,2]
[363199798,1748621450169,-420.0,0.00022191,2]
[363199799,1748621450179,-1280.93,0.00022191,2]
[363199800,1748621450188,-420.0,0.00022191,2]
[363199801,1748621450198,-485.5,0.00022191,2]
[363199802,1748621450207,-1383.42,0.00022191,2]
[363199803,1748621450217,-420.0,0.00022191,2]
[363199804,1748621450227,-420.0,0.00022191,2]
[363199805,1748621450236,-420.0,0.00022191,2]
[363199806,1748621450246,-765.35,0.00022191,2]
[363199807,1748621450255,-420.0,0.00022191,2]
[363199808,1748621450265,-420.0,0.00022191,2]
[363199809,1748621450274,-518.37,0.00022191,2]
[363199810,1748621450283,-1656.7,0.00022191,2]
[363199811,1748621450294,-3462.85,0.00022191,2]
[363199812,1748621450303,-1733.26,0.00022191,2]
[363199813,1748621450313,-1766.38,0.00022191,2]
[363199814,1748621450322,-1121.05,0.00022191,2]
[363199815,1748621450332,-779.82,0.00022191,2]
[363199816,1748621450341,-420.0,0.00022191,2]
[363199817,1748621450351,-1733.29,0.00022191,2]
[363199818,1748621450361,-430.54,0.00022191,2]
[363199819,1748621450370,-1057.53,0.00022191,2]
[363199820,1748621450379,-498.86,0.00022191,2]
[363199821,1748621450389,-4651.68,0.00022191,2]
[363199822,1748621450398,-420.0,0.00022191,2]
[363199823,1748621450407,-586.33,0.00022191,2]
[363199824,1748621450416,-883.98,0.00022191,2]
[363199825,1748621450424,-420.0,0.00022191,2]
[363199826,1748621450433,-509.36,0.00022191,2]
[363199827,1748621450441,-420.0,0.00022191,2]
[363199828,1748621450449,-462.09,0.00022191,2]
[363199829,1748621450459,-420.0,0.00022191,2]
[363199830,1748621450467,-1000.0,0.00022191,2]
[363199831,1748621450476,-420.0,0.00022191,2]
[363199832,1748621450484,-429.88,0.00022191,2]
[363199833,1748621450492,-918.5,0.00022191,2]
[363199834,1748621450501,-6943.32,0.00022191,2]
[363199835,1748621450510,-478.33,0.00022191,2]
[363199836,1748621450518,-1670.99,0.00022191,2]
[363199837,1748621450527,-420.0,0.00022191,2]
[363199838,1748621450535,-494.89,0.00022191,2]
[363199839,1748621450544,-420.0,0.00022191,2]
[363199840,1748621450552,-420.0,0.00022191,2]
[363199841,1748621450561,-420.0,0.00022191,2]
[363199842,1748621450569,-481.15,0.00022191,2]
[363199843,1748621450579,-420.0,0.00022191,2]
[363199844,1748621450588,-420.0,0.00022191,2]
[363199845,1748621450598,-420.0,0.00022191,2]
[363199846,1748621450608,-5313.78,0.00022191,2]
[363199847,1748621450617,-423.74,0.00022191,2]
[363199848,1748621450626,-422.14,0.00022191,2]
[363199849,1748621450635,-426.98,0.00022191,2]
[363199850,1748621450644,-641.17,0.00022191,2]
[363199851,1748621450654,-420.0,0.00022191,2]
[363199852,1748621450664,-420.0,0.00022191,2]
[363199853,1748621450676,-420.0,0.00022191,2]
[363199854,1748621450685,-420.0,0.00022191,2]
[363199855,1748621450695,-488.76,0.00022191,2]
[363199856,1748621450704,-420.0,0.00022191,2]
[363199857,1748621450714,-759.34,0.00022191,2]
[363199858,1748621450723,-692.95,0.00022191,2]
[363199859,1748621450733,-1159.63,0.00022191,2]
[363199860,1748621450742,-2604.25,0.00022191,2]
[363199861,1748621450753,-420.0,0.00022191,2]
[363199862,1748621450763,-2234.11,0.00022191,2]
[363199863,1748621450772,-501.48440447,0.00022191,2]
[363199864,1748621450781,-420.0,0.00022191,2]
[363199865,1748621450792,-420.0,0.00022191,2]
[363199866,1748621450802,-420.0,0.00022191,2]
[363199867,1748621450811,-2926.35,0.00022191,2]
[363199868,1748621450820,-7394.8,0.00022191,2]
[363199869,1748621450829,-420.0,0.00022191,2]
[363199870,1748621450839,-972.44,0.00022191,2]
[363199871,1748621450848,-420.0,0.00022191,2]
[363199872,1748621450857,-420.0,0.00022191,2]
[363199873,1748621450867,-420.0,0.00022191,2]
[363199874,1748621450877,-420.0,0.00022191,2]
[363199875,1748621450886,-545.89,0.00022191,2]
[363199876,1748621450895,-1266.42,0.00022191,2]
[363199877,1748621450905,-559.57,0.00022191,2]
[363199878,1748621450914,-1031.04,0.00022191,2]
[363199879,1748621450923,-420.0,0.00022191,2]
[363199880,1748621450933,-17120.95,0.00022191,2]
[363199881,1748621450943,-1111.37,0.00022191,2]
[363199882,1748621450952,-420.0,0.00022191,2]
[363199883,1748621450962,-850.95,0.000222,2]
[363199884,1748621450971,-4238.07969842,0.00022201,2]
[363199885,1748621450980,-250.0,0.00022206,2]
[363199886,1748621450989,-250.0,0.00022206,2]
[363199887,1748621450999,-250.0,0.00022206,2]
[363199888,1748621451008,-168.02,0.00022208,2]
[363199889,1748621451017,-160.04415423,0.00022228,2]
[363199890,1748621451027,-178.301,0.00022232,2]
[363199891,1748621451036,-150.172,0.00022232,2]
[363199892,1748621451046,-150.0,0.00022232,2]
[363199893,1748621451055,-941.0,0.00022232,2]
[363199894,1748621451065,-1314.0,0.00022232,2]
[363199895,1748621451075,-634.0,0.00022232,2]
[363199896,1748621451085,-801.0,0.00022232,2]
[363199897,1748621451095,-924.0,0.00022232,2]
[363199898,1748621451105,-1268.0,0.00022232,2]
[363199899,1748621451115,-588.0,0.00022232,2]
[363199900,1748621451124,-556.0,0.00022232,2]
[363199901,1748621451134,-1466.0,0.00022232,2]
[363199902,1748621451143,-1155.0,0.00022232,2]
[363199903,1748621451152,-3692.06123982,0.00022261,2]
[363199904,1748621451162,-957.07,0.00022273,2]
[363199905,1748621451172,-2443.1,0.00022273,2]
[363199906,1748621451182,-1682.09,0.00022273,2]
[363199907,1748621451192,-3253.57,0.00022273,2]
[363199908,1748621451201,-3184.32,0.00022273,2]
[363199909,1748621451210,-658.9,0.00022273,2]
[363199910,1748621451220,-4073.28,0.00022273,2]
[363199911,1748621451229,-12023.02,0.00022273,2]
[363199912,1748621451240,-3742.49,0.00022273,2]
[363199913,1748621451250,-561.3,0.00022273,2]
[363199914,1748621451259,-160.04415423,0.00022297,2]
[363199915,1748621451270,-3442.75,0.000223,2]
[363199916,1748621451279,-4565.2,0.000223,2]
[363199917,1748621451291,-4565.2,0.000223,2]
[363199918,1748621451300,-3442.75,0.000223,2]
[363199919,1748621451310,-160.04415423,0.00022365,2]
[363199920,1748621451319,-4238.07969842,0.00022392,2]
[363199921,1748621451329,-800.0,0.0002243,8]
[363199922,1748621451340,-800.0,0.0002243,8]
[363199923,1748621451351,-800.0,0.0002243,8]
[363199924,1748621451362,-800.0,0.0002243,8]
[363199925,1748621451373,-800.0,0.0002243,8]
[363199926,1748621451384,-800.0,0.0002243,8]
[363199927,1748621451393,-800.0,0.0002243,8]
[363199928,1748621451403,-800.0,0.0002243,8]
[363199929,1748621451413,-800.0,0.0002243,8]
[363199930,1748621451422,-800.0,0.0002243,8]
[363199931,1748621451433,-151.0,0.00022465,7]
[363199932,1748621451443,-151.0,0.00022465,7]
[363199933,1748621451454,-420.0,0.00022465,2]
[363199934,1748621451465,-420.0,0.00022465,2]
[363199935,1748621451474,-420.0,0.00022465,2]
[363199936,1748621451483,-321.36531117,0.00022465,2]
[363199937,1748621451494,-420.0,0.00022465,2]
[363199938,1748621451504,-420.0,0.00022465,2]
[363199939,1748621451515,-420.0,0.00022465,2]
[363199940,1748621451524,-420.0,0.00022465,2]
[363199941,1748621451533,-420.0,0.00022465,2]
[363199942,1748621451543,-420.0,0.00022465,2]
[363199943,1748621451552,-420.0,0.00022465,2]